fUST/lending_fUST_20250218
["ID","MTS","AMOUNT","RATE_DAILY","PERIOD"]
[353457745,1739849441071,-500.0,0.00017553,2]
[353457746,1739849441081,-502.14857959,0.00017553,2]
[353457747,1739849441089,-500.0,0.00017553,2]
[353457748,1739849441105,-500.0,0.00017553,2]
[353457749,1739849441119,-500.0,0.00017553,2]
[353457750,1739849441129,-505.94,0.00017553,2]
[353457751,1739849441139,-501.83963437,0.00017553,2]
[353457752,1739849441148,-502.05828119,0.00017553,2]
[353457753,1739849441158,-500.0,0.00017553,2]
[353457754,1739849441167,-500.0,0.00017553,2]
[353457755,1739849441176,-192.15038798,0.00017553,2]
[353457756,1739849441186,-502.59636462,0.00017553,2]
[353457757,1739849441196,-502.05300707,0.00017553,2]
[353457758,1739849441205,-500.0,0.00017553,2]
[353457759,1739849441216,-502.82324713,0.00017553,2]
[353457760,1739849441225,-500.0,0.00017554,2]
[353457761,1739849441235,-398.43,0.00017554,2]
[353457762,1739849441245,-277.37629602,0.00017554,2]
[353457763,1739849441255,-500.0,0.00017554,2]
[353457764,1739849441264,-172.54,0.00017554,2]
[353457765,1739849441274,-500.0,0.00017554,2]
[353457766,1739849441284,-358.52,0.00017554,2]
[353457767,1739849441293,-198.86889677,0.000176,6]
[353457768,1739849441303,-544.22,0.00017607,2]
[353457769,1739849441312,-500.0,0.00017607,2]
[353457770,1739849441322,-500.0,0.00017607,2]
[353457771,1739849441331,-500.0,0.00017607,2]
[353457772,1739849441341,-500.0,0.00017607,2]
[353457773,1739849441350,-526.24,0.00017607,2]
[353457774,1739849441360,-500.0,0.00017607,2]
[353457775,1739849441369,-500.0,0.00017607,2]
[353457776,1739849441379,-542.64,0.00017607,2]
[353457777,1739849441389,-500.0,0.00017607,2]
[353457778,1739849441398,-3425.41622989,0.00017628,2]
[353457779,1739849441408,-500.0,0.00017635,2]
[353457780,1739849441418,-500.0,0.00017635,2]
[353457781,1739849441427,-500.0,0.00017635,2]
[353457782,1739849441437,-500.0,0.00017635,2]
[353457783,1739849441447,-500.0,0.00017635,2]
[353457784,1739849441456,-500.0,0.00017635,2]
[353457785,1739849441466,-500.0,0.00017635,2]
[353457786,1739849441475,-539.10171385,0.00017635,2]
[353457787,1739849441485,-500.0,0.00017635,2]
[353457788,1739849441496,-500.0,0.00017635,2]
[353457789,1739849441506,-500.0,0.00017635,2]
[353457790,1739849441516,-500.0,0.00017635,2]
[353457791,1739849441525,-500.75477775,0.00017635,2]
[353457792,1739849441535,-501.53,0.00017635,2]
[353457793,1739849441545,-500.0,0.00017635,2]
[353457794,1739849441555,-500.0,0.00017635,2]
[353457795,1739849441568,-500.0,0.00017636,2]
[353457796,1739849441577,-532.6,0.00017636,2]
[353457797,1739849441587,-384.85,0.00017636,2]
[353457798,1739849441598,-500.0,0.00017636,2]
[353457799,1739849441607,-447.42,0.00017636,2]
[353457800,1739849441619,-435.22,0.00017636,2]
[353457801,1739849441629,-500.0,0.00017636,2]
[353457802,1739849441640,-244.38,0.00017636,2]
[353457803,1739849441649,-500.0,0.00017636,2]
[353457804,1739849441660,-515.61,0.00017636,2]
[353457805,1739849441670,-609.24,0.00017636,2]
[353457806,1739849441680,-500.0,0.00017636,2]
[353457807,1739849441690,-500.0,0.00017636,2]
[353457808,1739849441700,-325.71,0.00017636,2]
[353457809,1739849441710,-500.0,0.00017636,2]
[353457810,1739849441719,-500.0,0.00017636,2]
[353457811,1739849441729,-500.0,0.00017636,2]
[353457812,1739849441738,-4390.43,0.00017636,2]
[353457813,1739849441747,-500.0,0.00017636,2]
[353457814,1739849441756,-500.0,0.00017636,2]
[353457815,1739849441766,-500.0,0.00017636,2]
[353457816,1739849441775,-500.0,0.00017636,2]
[353457817,1739849441784,-500.0,0.00017636,2]
[353457818,1739849441796,-500.0,0.00017636,2]
[353457819,1739849441805,-1351.72,0.00017636,2]
[353457820,1739849441815,-206.3,0.00017636,2]
[353457821,1739849441825,-500.0,0.00017636,2]
[353457822,1739849441834,-500.0,0.00017636,2]
[353457823,1739849441843,-500.0,0.00017636,2]
[353457824,1739849441852,-346.92,0.00017636,2]
[353457825,1739849441862,-512.15,0.00017637,2]
[353457826,1739849441871,-955.8,0.00017637,2]
[353457827,1739849441880,-25484.56712221,0.00017638,2]
[353457828,1739849441889,-255.1180816,0.0001764,2]
[353457829,1739849441899,-544.22,0.00017689,2]
[353457830,1739849441908,-500.0,0.00017689,2]
[353457831,1739849441918,-500.0,0.00017689,2]
[353457832,1739849441927,-500.0,0.00017689,2]
[353457833,1739849441936,-500.0,0.00017689,2]
[353457834,1739849441945,-526.24,0.00017689,2]
[353457835,1739849441954,-500.0,0.00017689,2]
[353457836,1739849441963,-395.62,0.00017689,2]
[353457837,1739849441972,-542.64,0.00017689,2]
[353457838,1739849441981,-254.17,0.00017689,2]
[353457839,1739849441991,-352.19,0.00017717,2]
[353457840,1739849442000,-555.24,0.00017717,2]
[353457841,1739849442008,-331.31,0.00017717,2]
[353457842,1739849442017,-172.09,0.00017717,2]
[353457843,1739849442026,-500.0,0.00017717,2]
[353457844,1739849442035,-500.0,0.00017717,2]
[353457845,1739849442044,-662.34,0.00017717,2]
[353457846,1739849442053,-500.0,0.00017718,2]
[353457847,1739849442062,-500.0,0.00017718,2]
[353457848,1739849442071,-500.0,0.00017718,2]
[353457849,1739849442080,-312.59,0.00017718,2]
[353457850,1739849442089,-500.0,0.00017718,2]
[353457851,1739849442098,-500.0,0.00017718,2]
[353457852,1739849442107,-500.0,0.00017718,2]
[353457853,1739849442116,-4390.43,0.00017718,2]
[353457854,1739849442125,-268.06,0.00017718,2]
[353457855,1739849442135,-500.0,0.00017718,2]
[353457856,1739849442144,-500.0,0.00017718,2]
[353457857,1739849442153,-500.0,0.00017718,2]
[353457858,1739849442163,-285.42,0.00017718,2]
[353457859,1739849442177,-1351.72,0.00017718,2]
[353457860,1739849442193,-500.0,0.00017718,2]
[353457861,1739849442203,-500.0,0.00017718,2]
[353457862,1739849442211,-500.0,0.00017718,2]
[353457863,1739849442220,-500.0,0.00017719,2]
[353457864,1739849442229,-500.0,0.00017719,2]
[353457865,1739849442240,-544.22,0.00017772,2]
[353457866,1739849442249,-174.93,0.00017772,2]
[353457867,1739849442259,-500.0,0.00017772,2]
[353457868,1739849442269,-369.41,0.00017772,2]
[353457869,1739849442278,-500.0,0.00017772,2]
[353457870,1739849442287,-526.24,0.00017772,2]
[353457871,1739849442296,-500.0,0.00017772,2]
[353457872,1739849442306,-542.64,0.00017772,2]
[353457873,1739849442315,-3425.41622989,0.0001779,2]
[353457874,1739849442324,-512.15,0.00017799,2]
[353457875,1739849442334,-955.8,0.00017799,2]
[353457876,1739849442343,-200.0,0.000178,6]
[353457877,1739849442352,-200.0,0.000178,6]
[353457878,1739849442362,-200.0,0.000178,20]
[353457879,1739849442371,-200.0,0.000178,20]
[353457880,1739849442380,-200.0,0.000178,20]
[353457881,1739849442389,-200.0,0.000178,15]
[353457882,1739849442398,-200.0,0.000178,15]
[353457883,1739849442408,-218.75,0.000178,2]
[353457884,1739849442417,-219.99,0.000178,2]
[353457885,1739849442426,-367.48,0.000178,2]
[353457886,1739849442435,-500.0,0.000178,2]
[353457887,1739849442444,-193.35,0.000178,2]
[353457888,1739849442453,-500.0,0.000178,2]
[353457889,1739849442463,-285.1,0.000178,2]
[353457890,1739849442472,-500.0,0.000178,2]
[353457891,1739849442481,-4390.43,0.000178,2]
[353457892,1739849442492,-500.0,0.000178,2]
[353457893,1739849442502,-500.0,0.000178,2]
[353457894,1739849442511,-309.66,0.000178,2]
[353457895,1739849442520,-1351.72,0.000178,2]
[353457896,1739849442529,-500.0,0.000178,2]
[353457897,1739849442539,-500.0,0.000178,2]
[353457898,1739849442548,-500.0,0.000178,2]
[353457899,1739849442558,-524.07,0.00017801,2]
[353457900,1739849442574,-381.94,0.00017801,2]
[353457901,1739849442584,-544.22,0.00017854,2]
[353457902,1739849442593,-500.0,0.00017854,2]
[353457903,1739849442604,-500.0,0.00017854,2]
[353457904,1739849442613,-526.24,0.00017854,2]
[353457905,1739849442623,-500.0,0.00017854,2]
[353457906,1739849442633,-542.64,0.00017854,2]
[353457907,1739849442644,-413.574,0.00017873,2]
[353457908,1739849442654,-396.0,0.00017873,2]
[353457909,1739849442663,-500.0,0.00017882,2]
[353457910,1739849442672,-500.0,0.00017882,2]
[353457911,1739849442681,-322.54,0.00017882,2]
[353457912,1739849442690,-4390.43,0.00017882,2]
[353457913,1739849442699,-500.0,0.00017882,2]
[353457914,1739849442708,-437.74,0.00017882,2]
[353457915,1739849442718,-1351.72,0.00017882,2]
[353457916,1739849442727,-500.0,0.00017882,2]
[353457917,1739849442736,-500.0,0.00017882,2]
[353457918,1739849442747,-500.0,0.00017882,2]
[353457919,1739849442756,-6850.83245978,0.00017889,2]
[353457920,1739849442766,-6850.83245978,0.0001789,2]
[353457921,1739849442775,-512.15,0.00017898,2]
[353457922,1739849442784,-512.15,0.00017898,2]
[353457923,1739849442794,-955.8,0.00017898,2]
[353457925,1739849442803,-955.8,0.00017898,2]
[353457927,1739849442813,-503.21458797,0.00017899,2]
[353457928,1739849442823,-505.5021649,0.00017899,2]
[353457929,1739849442831,-500.0,0.00017899,2]
[353457930,1739849442840,-500.0,0.00017899,2]
[353457931,1739849442851,-500.0,0.00017899,2]
[353457932,1739849442862,-500.0,0.00017899,2]
[353457933,1739849442879,-500.0,0.00017899,2]
[353457934,1739849442895,-500.0,0.00017899,2]
[353457935,1739849442906,-500.0,0.00017899,2]
[353457936,1739849442916,-527.0261349,0.00017899,2]
[353457938,1739849442928,-247.63597903,0.00017899,2]
[353457940,1739849442942,-500.0,0.00017899,2]
[353457942,1739849442952,-508.42805449,0.00017899,2]
[353457944,1739849442963,-415.33513168,0.00017899,2]
[353457946,1739849442973,-504.5320964,0.00017899,2]
[353457948,1739849442983,-600.47678787,0.00017899,2]
[353457949,1739849442992,-501.66895119,0.00017899,2]
[353457950,1739849443003,-510.16500285,0.00017899,2]
[353457951,1739849443012,-229.27046621,0.00017899,2]
[353457952,1739849443023,-505.77826541,0.00017899,2]
[353457953,1739849443036,-500.0,0.00017899,2]
[353457954,1739849443047,-290.57924227,0.00017899,2]
[353457955,1739849443057,-500.0,0.00017899,2]
[353457956,1739849443067,-506.34000117,0.00017899,2]
[353457957,1739849443076,-503.3429473,0.00017899,2]
[353457958,1739849443088,-506.46097388,0.00017899,2]
[353457959,1739849443104,-500.0,0.00017899,2]
[353457960,1739849443115,-502.99168045,0.00017899,2]
[353457961,1739849443127,-505.93285351,0.00017899,2]
[353457963,1739849443141,-504.57787772,0.00017899,2]
[353457965,1739849443239,-504.82388529,0.00017899,2]
[353457966,1739849443252,-502.51766207,0.00017899,2]
[353457967,1739849443265,-501.37182933,0.00017899,2]
[353457968,1739849443277,-506.91150807,0.00017899,2]
[353457969,1739849443287,-504.65954649,0.00017899,2]
[353457970,1739849443297,-500.51526366,0.00017899,2]
[353457971,1739849443306,-505.98988764,0.00017899,2]
[353457972,1739849443315,-500.0,0.00017899,2]
[353457973,1739849443324,-506.76039904,0.00017899,2]
[353457974,1739849443334,-505.52156448,0.00017899,2]
[353457976,1739849443343,-502.8348959,0.00017899,2]
[353457977,1739849443352,-500.0,0.00017899,2]
[353457978,1739849443362,-189.84674318,0.00017899,2]
[353457979,1739849443371,-500.0,0.00017899,2]
[353457980,1739849443381,-502.42287607,0.00017899,2]
[353457981,1739849443390,-505.24745287,0.00017899,2]
[353457982,1739849443399,-500.0,0.00017899,2]
[353457983,1739849443409,-506.00562981,0.00017899,2]
[353457984,1739849443418,-504.39545797,0.00017899,2]
[353457985,1739849443427,-500.0,0.00017899,2]
[353457986,1739849443437,-504.65490974,0.00017899,2]
[353457987,1739849443446,-502.89373479,0.00017899,2]
[353457988,1739849443455,-500.0,0.00017899,2]
[353457989,1739849443464,-502.41594839,0.00017899,2]
[353457990,1739849443473,-501.13928089,0.00017899,2]
[353457991,1739849443481,-503.25167458,0.00017899,2]
[353457992,1739849443491,-508.03884181,0.00017899,2]
[353457993,1739849443500,-506.34044382,0.00017899,2]
[353457994,1739849443509,-233.43592483,0.00017899,2]
[353457995,1739849443518,-503.34952851,0.00017899,2]
[353457996,1739849443527,-505.63976261,0.00017899,2]
[353457997,1739849443536,-500.0,0.00017899,2]
[353457998,1739849443545,-501.47973168,0.00017899,2]
[353457999,1739849443554,-500.0,0.00017899,2]
[353458000,1739849443566,-500.0,0.00017899,2]
[353458001,1739849443575,-500.0,0.00017899,2]
[353458002,1739849443584,-502.0054615,0.00017899,2]
[353458003,1739849443592,-500.0,0.00017899,2]
[353458004,1739849443602,-500.0,0.00017899,2]
[353458005,1739849443610,-503.26344201,0.00017899,2]
[353458006,1739849443619,-500.0,0.00017899,2]
[353458007,1739849443628,-419.40067518,0.00017899,2]
[353458008,1739849443638,-501.47462572,0.00017899,2]
[353458009,1739849443647,-504.543494,0.00017899,2]
[353458010,1739849443655,-500.0,0.00017899,2]
[353458011,1739849443665,-503.14023581,0.00017899,2]
[353458012,1739849443674,-508.40878413,0.00017899,2]
[353458013,1739849443683,-512.15,0.00017899,2]
[353458014,1739849443692,-512.15,0.00017899,2]
[353458015,1739849443701,-512.15,0.00017899,2]
[353458016,1739849443710,-503.69997172,0.00017899,2]
[353458017,1739849443718,-512.15,0.00017899,2]
[353458018,1739849443725,-512.15,0.00017899,2]
[353458019,1739849443732,-512.15,0.00017899,2]
[353458020,1739849443740,-512.15,0.00017899,2]
[353458021,1739849443747,-503.65758533,0.00017899,2]
[353458022,1739849443754,-503.7141561,0.00017899,2]
[353458023,1739849443760,-505.60460609,0.00017899,2]
[353458024,1739849443770,-261.99896067,0.00017899,2]
[353458025,1739849443779,-503.38613861,0.00017899,2]
[353458026,1739849443789,-503.34225498,0.00017899,2]
[353458027,1739849443798,-195.76115986,0.00017899,2]
[353458028,1739849443808,-500.0,0.00017899,2]
[353458029,1739849443817,-500.0,0.00017899,2]
[353458030,1739849443827,-654.02,0.00017899,2]
[353458031,1739849443836,-502.0580148,0.00017899,2]
[353458032,1739849443846,-500.0,0.00017899,2]
[353458033,1739849443856,-503.04561459,0.00017899,2]
[353458034,1739849443866,-503.02681637,0.00017899,2]
[353458035,1739849443875,-500.0,0.00017899,2]
[353458036,1739849443885,-500.0,0.00017899,2]
[353458037,1739849443894,-502.16887013,0.00017899,2]
[353458038,1739849443902,-500.0,0.00017899,2]
[353458039,1739849443912,-502.48999283,0.00017899,2]
[353458040,1739849443921,-500.84995567,0.00017899,2]
[353458041,1739849443929,-501.37422611,0.00017899,2]
[353458042,1739849443939,-504.14866458,0.00017899,2]
[353458043,1739849443948,-500.0,0.00017899,2]
[353458044,1739849443957,-500.81122575,0.00017899,2]
[353458045,1739849443966,-629.67316806,0.00017899,2]
[353458046,1739849443975,-501.55429017,0.00017899,2]
[353458047,1739849443984,-501.42417858,0.00017899,2]
[353458048,1739849443993,-500.0,0.00017899,2]
[353458049,1739849444002,-502.53688352,0.00017899,2]
[353458050,1739849444012,-500.0,0.00017899,2]
[353458051,1739849444022,-500.0,0.00017899,2]
[353458052,1739849444031,-501.7794354,0.00017899,2]
[353458053,1739849444038,-505.60805723,0.00017899,2]
[353458054,1739849444046,-503.18491287,0.00017899,2]
[353458055,1739849444054,-502.09340342,0.00017899,2]
[353458056,1739849444061,-500.0,0.00017899,2]
[353458057,1739849444069,-500.0,0.00017899,2]
[353458058,1739849444078,-500.0,0.00017899,2]
[353458059,1739849444088,-500.0,0.00017899,2]
[353458060,1739849444097,-500.0,0.00017899,2]
[353458061,1739849444106,-500.0,0.00017899,2]
[353458062,1739849444115,-500.0,0.00017899,2]
[353458063,1739849444125,-500.0,0.00017899,2]
[353458064,1739849444134,-501.37434676,0.00017899,2]
[353458065,1739849444143,-500.0,0.00017899,2]
[353458066,1739849444152,-955.8,0.00017899,2]
[353458067,1739849444162,-955.8,0.00017899,2]
[353458068,1739849444171,-955.8,0.00017899,2]
[353458069,1739849444180,-955.8,0.00017899,2]
[353458070,1739849444190,-955.8,0.00017899,2]
[353458071,1739849444199,-955.8,0.00017899,2]
[353458072,1739849444208,-955.8,0.00017899,2]
[353458073,1739849444217,-500.0,0.00017899,2]
[353458074,1739849444226,-502.7774383,0.00017899,2]
[353458075,1739849444234,-502.00593207,0.00017899,2]
[353458076,1739849444245,-503.16674286,0.00017899,2]
[353458077,1739849444254,-340.33881491,0.00017899,2]
[353458078,1739849444265,-3000.0,0.000179,2]
[353458079,1739849444274,-122498.273072,0.000179,5]
[353458080,1739849444283,-4400.35504314,0.000179,2]
[353458081,1739849444293,-544.22,0.00017936,2]
[353458082,1739849444303,-500.0,0.00017936,2]
[353458083,1739849444311,-500.0,0.00017936,2]
[353458084,1739849444321,-526.24,0.00017936,2]
[353458085,1739849444330,-500.0,0.00017936,2]
[353458086,1739849444340,-542.64,0.00017936,2]
[353458087,1739849444349,-2051.59364115,0.0001795,2]
[353458088,1739849444359,-3425.41622989,0.00017954,2]
[353458089,1739849444368,-295.92,0.00017964,2]
[353458090,1739849444377,-500.0,0.00017964,2]
[353458091,1739849444386,-4390.43,0.00017964,2]
[353458092,1739849444395,-500.0,0.00017964,2]
[353458093,1739849444404,-1351.72,0.00017964,2]
[353458094,1739849444413,-500.0,0.00017964,2]
[353458095,1739849444422,-500.0,0.00017964,2]
[353458096,1739849444431,-500.0,0.00017964,2]
[353458097,1739849444440,-500.19971467,0.00017973,2]
[353458098,1739849444450,-503.64714928,0.00017973,2]
[353458099,1739849444460,-503.002767,0.00017973,2]
[353458100,1739849444470,-160.02194052,0.00017973,2]
[353458101,1739849444479,-502.97562175,0.00017973,2]
[353458102,1739849444488,-501.18304847,0.00017973,2]
[353458103,1739849444497,-502.8772763,0.00017973,2]
[353458104,1739849444506,-512.15,0.0001798,2]
[353458105,1739849444515,-955.8,0.0001798,2]
[353458106,1739849444523,-500.0,0.00017981,2]
[353458107,1739849444533,-500.0,0.00017981,2]
[353458108,1739849444542,-612.0,0.00017981,2]
[353458109,1739849444551,-500.0,0.00017981,2]
[353458110,1739849444563,-500.0,0.00017981,2]
[353458111,1739849444573,-367.94336471,0.00017981,2]
[353458112,1739849444583,-500.0,0.00017981,2]
[353458113,1739849444592,-502.48250496,0.00017981,2]
[353458114,1739849444602,-500.0,0.00017981,2]
[353458115,1739849444611,-500.0,0.00017981,2]
[353458116,1739849444621,-507.45351471,0.00017981,2]
[353458117,1739849444631,-500.0,0.00017981,2]
[353458118,1739849444641,-200.63374824,0.00017981,2]
[353458119,1739849444650,-156.15627895,0.00017981,2]
[353458120,1739849444659,-500.0,0.00017981,2]
[353458121,1739849444669,-504.84669914,0.00017981,2]
[353458122,1739849444678,-502.38710748,0.00017981,2]
[353458123,1739849444687,-503.19341236,0.00017981,2]
[353458124,1739849444696,-502.07186726,0.00017981,2]
[353458125,1739849444705,-654.02,0.00017981,2]
[353458126,1739849444714,-500.0,0.00017981,2]
[353458127,1739849444723,-500.0,0.00017981,2]
[353458128,1739849444733,-500.0,0.00017981,2]
[353458129,1739849444742,-500.0,0.00017981,2]
[353458130,1739849444751,-502.2314325,0.00017981,2]
[353458131,1739849444760,-510.80053049,0.00017981,2]
[353458132,1739849444770,-500.0,0.00017981,2]
[353458133,1739849444779,-640.05236923,0.00017981,2]
[353458134,1739849444788,-500.0,0.00017981,2]
[353458135,1739849444797,-500.0,0.00017981,2]
[353458136,1739849444806,-503.72966999,0.00017981,2]
[353458137,1739849444815,-500.0,0.00017981,2]
[353458138,1739849444825,-266.12326878,0.00017981,2]
[353458139,1739849444834,-502.66102143,0.00017981,2]
[353458140,1739849444844,-500.0,0.00017981,2]
[353458141,1739849444853,-500.0,0.00017981,2]
[353458142,1739849444862,-500.0,0.00017981,2]
[353458143,1739849444871,-287.79071924,0.00017981,2]
[353458144,1739849444880,-1001.52193153,0.00017987,2]
[353458145,1739849444890,-3425.41622989,0.00017989,2]
[353458146,1739849444898,-512.15,0.00017989,2]
[353458147,1739849444905,-512.15,0.00017989,2]
[353458148,1739849444912,-512.15,0.00017989,2]
[353458149,1739849444920,-955.8,0.00017989,2]
[353458150,1739849444930,-955.8,0.00017989,2]
[353458151,1739849444939,-955.8,0.00017989,2]
[353458152,1739849444949,-3425.41622989,0.0001799,2]
[353458153,1739849444958,-34254.1622989,0.0001799,2]
[353458154,1739849444968,-512.15,0.00017998,2]
[353458155,1739849444978,-512.15,0.00017998,2]
[353458156,1739849444987,-955.8,0.00017998,2]
[353458157,1739849444997,-955.8,0.00017998,2]
[353458158,1739849445007,-502.62332079,0.00017999,2]
[353458159,1739849445017,-500.93631628,0.00017999,2]
[353458160,1739849445026,-501.07565322,0.00017999,2]
[353458161,1739849445035,-500.70638964,0.00017999,2]
[353458162,1739849445044,-501.47238795,0.00017999,2]
[353458163,1739849445054,-547.88195062,0.00017999,2]
[353458164,1739849445063,-501.88823899,0.00017999,2]
[353458165,1739849445072,-152.3254028,0.00017999,2]
[353458166,1739849445082,-501.6618841,0.00017999,2]
[353458167,1739849445092,-501.51131501,0.00017999,2]
[353458168,1739849445101,-501.26296343,0.00017999,2]
[353458169,1739849445111,-501.5644629,0.00017999,2]
[353458170,1739849445120,-555.0770785,0.00017999,2]
[353458171,1739849445130,-500.64910887,0.00017999,2]
[353458172,1739849445140,-501.82626574,0.00017999,2]
[353458173,1739849445149,-501.87893835,0.00017999,2]
[353458174,1739849445158,-501.77120487,0.00017999,2]
[353458175,1739849445248,-501.11670232,0.00017999,2]
[353458176,1739849445259,-501.89812997,0.00017999,2]
[353458177,1739849445269,-501.07865871,0.00017999,2]
[353458178,1739849445278,-501.8274151,0.00017999,2]
[353458179,1739849445288,-502.33056316,0.00017999,2]
[353458180,1739849445297,-512.15,0.00017999,2]
[353458181,1739849445307,-512.15,0.00017999,2]
[353458182,1739849445316,-512.15,0.00017999,2]
[353458183,1739849445326,-512.15,0.00017999,2]
[353458184,1739849445335,-512.36363271,0.00017999,2]
[353458185,1739849445345,-460.0,0.00017999,7]
[353458186,1739849445354,-955.8,0.00017999,2]
[353458187,1739849445363,-955.8,0.00017999,2]
[353458188,1739849445374,-955.8,0.00017999,2]
[353458189,1739849445384,-955.8,0.00017999,2]
[353458190,1739849445393,-955.97691822,0.00017999,2]
[353458191,1739849445403,-50685.19767218,0.00018,5]
[353458192,1739849445412,-1439962.54112956,0.00018,15]
[353458193,1739849445498,-6482.30859685,0.00018,5]
[353458194,1739849445507,-368707.07004339,0.00018,15]
[353458195,1739849445519,-459937.9607219,0.00018,15]
[353458196,1739849445579,150.29,0.00015169,2]
[353458353,1739849469454,1971.0,0.00015274,2]
[353458354,1739849469538,539.248,0.00015274,2]
[353458355,1739849476916,396.0,0.00015274,2]
[353458356,1739849487333,2291.0,0.00015274,2]
[353458357,1739849590329,11631.0,0.00012,30]
[353458359,1739850335123,-158.99207633,0.00010472,2]
[353458360,1739850335143,-193.42431717,0.00010578,2]
[353458361,1739850335164,-193.42431717,0.00010685,2]
[353458362,1739850335185,-301.41788869,0.00010685,2]
[353458363,1739850441077,-98.58211131,0.00010685,2]
[353458364,1739850441099,-300.0,0.000149,5]
[353458365,1739850441121,-300.0,0.00015251,2]
[353458366,1739850441142,-849.23340962,0.00015252,2]
[353458367,1739850444093,-365.74586578,0.00015252,2]
[353458368,1739850445092,-7467.9977966,0.00015252,2]
[353458369,1739850453126,-616.87568385,0.00015252,2]
[353458376,1739850567109,-258.02951167,0.000151,2]
[353458377,1739850567131,-6282.52869525,0.00015252,2]
[353458378,1739850567154,-300.0,0.00015273,2]
[353458379,1739850567175,-396.0,0.00015274,2]
[353458380,1739850567196,-1971.0,0.00015274,2]
[353458381,1739850567218,-538.0,0.00015274,2]
[353458382,1739850567239,-2291.0,0.00015274,2]
[353458383,1739850567260,-242.18933329,0.000154,2]
[353458384,1739850567280,-336.0193412,0.000154,2]
[353458385,1739850567302,-504.19603379,0.000154,2]
[353458386,1739850567323,-500.0,0.000154,2]
[353458387,1739850567344,-500.0,0.000154,2]
[353458388,1739850567365,-500.0,0.000154,2]
[353458389,1739850567386,-500.0,0.000154,2]
[353458390,1739850567407,-12982.5089222,0.000154,2]
[353458391,1739850567428,-500.0,0.00015436,2]
[353458392,1739850567588,500.0,0.000154,2]
[353458393,1739850567877,500.0,0.000154,2]
[353458394,1739850572718,500.0,0.000154,2]
[353458395,1739850600084,503.10148325,0.000154,2]
[353458396,1739850604115,500.0,0.000154,2]
[353458397,1739850605640,500.0,0.000154,2]
[353458398,1739850631323,396.0,0.00015274,2]
[353458399,1739850631743,153.112,0.00015274,2]
[353458453,1739850632494,-288.59269336,0.00015482,2]
[353458455,1739850632504,-500.0,0.00015482,2]
[353458457,1739850632514,-500.0,0.00015482,2]
[353458459,1739850632524,-627.47,0.00015482,2]
[353458461,1739850632533,-612.0,0.00015482,2]
[353458463,1739850632543,-500.0,0.00015536,2]
[353458465,1739850632554,-500.0,0.00015564,2]
[353458467,1739850632563,-500.0,0.00015636,2]
[353458469,1739850632573,-500.0,0.00015646,2]
[353458472,1739850632583,-500.0,0.00015728,2]
[353458474,1739850632593,-500.0,0.00015736,2]
[353458476,1739850632602,-500.0,0.0001581,2]
[353458478,1739850632612,-500.0,0.00015836,2]
[353458480,1739850632622,-632.31,0.00015893,2]
[353458482,1739850632631,-500.0,0.00015936,2]
[353458484,1739850632640,-500.0,0.00016036,2]
[353458486,1739850632650,-500.0,0.00016136,2]
[353458488,1739850632659,-300.0,0.00016235,2]
[353458490,1739850632669,-500.0,0.00016236,2]